[Event "Early-Titled-Tuesday-Blitz-January-23-2024"]
[Site "Chess.com"]
[Date "2024.01.23"]
[Round "3"]
[White "GrotBchess"]
[Black "Vazabanga"]
[Result "0-1"]
[WhiteElo "2305"]
[BlackElo "2665"]
[TimeControl "180+1"]
[EndTime "8:28:02 PST"]
[Termination "Vazabanga won by resignation"]

1. e4 {[%clk 0:03:00.9]} 1... c5 {[%clk 0:02:58.3]} 2. Nf3 {[%clk 0:02:59.9]}
2... d6 {[%clk 0:02:58.5]} 3. Bb5+ {[%clk 0:02:59]} 3... Bd7 {[%clk 0:02:57.8]}
4. Bxd7+ {[%clk 0:02:58.9]} 4... Qxd7 {[%clk 0:02:58.7]} 5. O-O {[%clk
0:02:58.4]} 5... Nc6 {[%clk 0:02:59.2]} 6. c3 {[%clk 0:02:57.2]} 6... Nf6 {[%clk
0:02:58.4]} 7. Re1 {[%clk 0:02:57.4]} 7... e6 {[%clk 0:02:56.9]} 8. d4 {[%clk
0:02:57.2]} 8... cxd4 {[%clk 0:02:57.8]} 9. cxd4 {[%clk 0:02:57.5]} 9... d5
{[%clk 0:02:58.5]} 10. e5 {[%clk 0:02:57.7]} 10... Ne4 {[%clk 0:02:59.1]} 11.
Nbd2 {[%clk 0:02:58.1]} 11... Nxd2 {[%clk 0:02:59.3]} 12. Bxd2 {[%clk 0:02:59]}
12... Be7 {[%clk 0:02:59.7]} 13. Rc1 {[%clk 0:02:58.1]} 13... O-O {[%clk
0:02:59.8]} 14. Rc3 {[%clk 0:02:55.4]} 14... Bb4 {[%clk 0:02:50.3]} 15. Rxc6
{[%clk 0:02:55.1]} 15... Qxc6 {[%clk 0:02:44.2]} 16. Bxb4 {[%clk 0:02:54.2]}
16... Rfc8 {[%clk 0:02:44.8]} 17. Bc3 {[%clk 0:02:50.4]} 17... a5 {[%clk
0:02:44.1]} 18. Qd2 {[%clk 0:02:49.5]} 18... Qa4 {[%clk 0:02:35.4]} 19. b3
{[%clk 0:02:33.7]} 19... Qa3 {[%clk 0:02:35.3]} 20. Rc1 {[%clk 0:02:24.5]} 20...
h6 {[%clk 0:02:22.4]} 21. h4 {[%clk 0:02:20.6]} 21... Rc6 {[%clk 0:02:20.1]} 22.
Bb2 {[%clk 0:02:09.4]} 22... Qxa2 {[%clk 0:02:16.3]} 23. Rxc6 {[%clk 0:02:07.8]}
23... bxc6 {[%clk 0:02:17.2]} 24. Qc2 {[%clk 0:02:07.9]} 24... Rb8 {[%clk
0:02:14.1]} 25. Nd2 {[%clk 0:02:03.2]} 25... Rb4 {[%clk 0:02:10.4]} 26. Qc1
{[%clk 0:01:52.8]} 26... a4 {[%clk 0:02:04.1]} 27. Bc3 {[%clk 0:01:38.9]} 27...
Rb5 {[%clk 0:01:55.3]} 28. b4 {[%clk 0:01:05.6]} 28... Rb8 {[%clk 0:01:49.4]}
29. g3 {[%clk 0:00:59.4]} 29... Ra8 {[%clk 0:01:40]} 30. Kg2 {[%clk 0:00:58.9]}
30... Kf8 {[%clk 0:01:34.5]} 31. Kf1 {[%clk 0:00:56.8]} 31... h5 {[%clk
0:01:30.9]} 32. Ke2 {[%clk 0:00:56.5]} 32... Rb8 {[%clk 0:01:15]} 33. Ke3 {[%clk
0:00:52.8]} 33... Kg8 {[%clk 0:01:13.9]} 34. Ke2 {[%clk 0:00:52.2]} 34... f6
{[%clk 0:01:06]} 35. exf6 {[%clk 0:00:44.6]} 35... gxf6 {[%clk 0:01:06.9]} 36.
Kd1 {[%clk 0:00:44.4]} 36... Kf7 {[%clk 0:00:59.6]} 37. Qc2 {[%clk 0:00:41.9]}
37... Qxc2+ {[%clk 0:00:59.4]} 38. Kxc2 {[%clk 0:00:42.8]} 38... Re8 {[%clk
0:00:57.6]} 39. Nf3 {[%clk 0:00:40.1]} 39... Kg6 {[%clk 0:00:57.9]} 40. Kb2
{[%clk 0:00:37.7]} 40... Kf5 {[%clk 0:00:58.1]} 41. Ka3 {[%clk 0:00:36.2]} 41...
Ke4 {[%clk 0:00:57]} 42. Ne1 {[%clk 0:00:32]} 42... e5 {[%clk 0:00:54.7]} 43.
f3+ {[%clk 0:00:20.8]} 43... Ke3 {[%clk 0:00:52.7]} 44. Kb2 {[%clk 0:00:20.2]}
44... exd4 {[%clk 0:00:51.8]} 45. Nc2+ {[%clk 0:00:19.7]} 45... Kxf3 {[%clk
0:00:47.4]} 46. Nxd4+ {[%clk 0:00:19]} 46... Kxg3 {[%clk 0:00:47.9]} 47. Nxc6
{[%clk 0:00:18.9]} 47... Rc8 {[%clk 0:00:44.5]} 48. b5 {[%clk 0:00:14.6]} 48...
f5 {[%clk 0:00:43.5]} 49. Nd4 {[%clk 0:00:12.2]} 49... f4 {[%clk 0:00:42.7]} 50.
b6 {[%clk 0:00:09.9]} 50... a3+ {[%clk 0:00:40.9]} 51. Kb3 {[%clk 0:00:08.7]}
51... a2 {[%clk 0:00:40.3]} 52. b7 {[%clk 0:00:07.9]} 52... Rxc3+ {[%clk
0:00:39.4]} 53. Kb2 {[%clk 0:00:05.7]} 53... Rc1 {[%clk 0:00:37.5]} 54. b8=Q
{[%clk 0:00:04.3]} 54... a1=Q+ {[%clk 0:00:37.5]} 55. Kb3 {[%clk 0:00:04.2]}
55... Rb1+ {[%clk 0:00:38.1]} 56. Kc2 {[%clk 0:00:03.7]} 56... Rxb8 {[%clk
0:00:37.8]} 0-1

[Event "Early-Titled-Tuesday-Blitz-January-23-2024"]
[Site "Chess.com"]
[Date "2024.01.23"]
[Round "3"]
[White "Logman74"]
[Black "margarita_2703"]
[Result "1-0"]
[WhiteElo "2487"]
[BlackElo "2280"]
[TimeControl "180+1"]
[EndTime "8:28:04 PST"]
[Termination "Logman74 won by resignation"]

1. e4 {[%clk 0:02:59.2]} 1... e5 {[%clk 0:02:59.5]} 2. Nf3 {[%clk 0:02:58.2]}
2... Nc6 {[%clk 0:02:58.7]} 3. Bb5 {[%clk 0:02:50.8]} 3... a6 {[%clk 0:02:58.8]}
4. Ba4 {[%clk 0:02:51.3]} 4... Nf6 {[%clk 0:02:58.8]} 5. O-O {[%clk 0:02:51]}
5... Nxe4 {[%clk 0:02:59]} 6. d4 {[%clk 0:02:50.5]} 6... b5 {[%clk 0:02:58.8]}
7. Bb3 {[%clk 0:02:51]} 7... d5 {[%clk 0:02:59.4]} 8. dxe5 {[%clk 0:02:51.5]}
8... Be6 {[%clk 0:03:00]} 9. Qe2 {[%clk 0:02:50.1]} 9... Nc5 {[%clk 0:02:04.5]}
10. Rd1 {[%clk 0:02:48.8]} 10... Nxb3 {[%clk 0:01:59.5]} 11. axb3 {[%clk
0:02:47.5]} 11... Be7 {[%clk 0:01:47.9]} 12. c4 {[%clk 0:02:32.2]} 12... O-O
{[%clk 0:01:35.2]} 13. Nc3 {[%clk 0:02:21.9]} 13... Nb4 {[%clk 0:01:27.7]} 14.
Nd4 {[%clk 0:02:12.3]} 14... c6 {[%clk 0:01:20.9]} 15. Nxc6 {[%clk 0:02:07]}
15... Qe8 {[%clk 0:01:14.9]} 16. Nxe7+ {[%clk 0:01:53.7]} 16... Qxe7 {[%clk
0:01:15.8]} 17. cxd5 {[%clk 0:01:54.2]} 17... Bf5 {[%clk 0:01:15.3]} 18. d6
{[%clk 0:01:45.6]} 18... Qe6 {[%clk 0:01:15.2]} 19. Bf4 {[%clk 0:01:38.5]} 19...
Qxb3 {[%clk 0:01:12.4]} 20. g4 {[%clk 0:01:24.7]} 20... Be6 {[%clk 0:01:11.4]}
21. Ne4 {[%clk 0:01:23.8]} 21... Rac8 {[%clk 0:01:05.6]} 22. Rac1 {[%clk
0:01:12.3]} 22... Rc4 {[%clk 0:00:53.4]} 23. Nc5 {[%clk 0:00:55.5]} 23... Rxc5
{[%clk 0:00:47.9]} 24. Rxc5 {[%clk 0:00:54.4]} 24... Rd8 {[%clk 0:00:38.8]} 25.
Rc7 {[%clk 0:00:41.8]} 25... Nd5 {[%clk 0:00:38.3]} 26. Bg5 {[%clk 0:00:37.6]}
26... f6 {[%clk 0:00:20.2]} 27. exf6 {[%clk 0:00:35.2]} 27... Nxc7 {[%clk
0:00:20.3]} 28. f7+ {[%clk 0:00:31.3]} 28... Bxf7 {[%clk 0:00:20.4]} 29. Bxd8
{[%clk 0:00:31.5]} 29... Ne6 {[%clk 0:00:21]} 30. Bb6 {[%clk 0:00:27.3]} 30...
Qb4 {[%clk 0:00:20.8]} 31. d7 {[%clk 0:00:25.5]} 31... h5 {[%clk 0:00:15.3]} 32.
d8=Q+ {[%clk 0:00:23.6]} 32... Nxd8 {[%clk 0:00:16]} 33. Rxd8+ {[%clk
0:00:23.3]} 33... Kh7 {[%clk 0:00:16.9]} 34. Qd3+ {[%clk 0:00:16.9]} 34... Bg6
{[%clk 0:00:17.1]} 35. Qe3 {[%clk 0:00:16.9]} 35... Qxb2 {[%clk 0:00:16.4]} 36.
Kg2 {[%clk 0:00:16.2]} 36... Qc2 {[%clk 0:00:15.1]} 37. Bd4 {[%clk 0:00:16.2]}
37... Qc6+ {[%clk 0:00:14.3]} 38. Kg3 {[%clk 0:00:14.9]} 38... Qc7+ {[%clk
0:00:13.2]} 39. Qe5 {[%clk 0:00:15.6]} 39... Qf7 {[%clk 0:00:11]} 40. f4 {[%clk
0:00:14.1]} 40... hxg4 {[%clk 0:00:09.6]} 41. Rc8 {[%clk 0:00:12.2]} 41... Bf5
{[%clk 0:00:08.7]} 42. Rc7 {[%clk 0:00:12.1]} 42... Qxc7 {[%clk 0:00:06.1]} 43.
Qxc7 {[%clk 0:00:11.5]} 1-0

[Event "Early-Titled-Tuesday-Blitz-January-23-2024"]
[Site "Chess.com"]
[Date "2024.01.23"]
[Round "3"]
[White "Iball95"]
[Black "mishanick"]
[Result "0-1"]
[WhiteElo "2765"]
[BlackElo "3071"]
[TimeControl "180+1"]
[EndTime "8:28:07 PST"]
[Termination "mishanick won by checkmate"]

1. e4 {[%clk 0:02:44.3]} 1... c5 {[%clk 0:03:00]} 2. Nf3 {[%clk 0:02:44.8]} 2...
e6 {[%clk 0:03:00.6]} 3. Nc3 {[%clk 0:02:45.4]} 3... Nc6 {[%clk 0:03:00.6]} 4.
d4 {[%clk 0:02:45.8]} 4... cxd4 {[%clk 0:03:00.4]} 5. Nxd4 {[%clk 0:02:46.7]}
5... a6 {[%clk 0:02:59.3]} 6. Nxc6 {[%clk 0:02:46.4]} 6... bxc6 {[%clk 0:02:58]}
7. Qf3 {[%clk 0:02:45.8]} 7... d5 {[%clk 0:02:57.7]} 8. Qg3 {[%clk 0:02:45.7]}
8... Nf6 {[%clk 0:02:57.1]} 9. Be2 {[%clk 0:02:46]} 9... h5 {[%clk 0:02:55.9]}
10. h4 {[%clk 0:02:45.4]} 10... Bb4 {[%clk 0:02:55.2]} 11. e5 {[%clk 0:02:38.1]}
11... Ng4 {[%clk 0:02:30.1]} 12. Bxg4 {[%clk 0:02:35.7]} 12... hxg4 {[%clk
0:02:31]} 13. Qxg4 {[%clk 0:02:36.4]} 13... Bf8 {[%clk 0:02:31.7]} 14. Bg5
{[%clk 0:02:29.9]} 14... Qa5 {[%clk 0:02:29.4]} 15. O-O {[%clk 0:02:29.1]} 15...
c5 {[%clk 0:02:27]} 16. Rfe1 {[%clk 0:02:19.6]} 16... Bb7 {[%clk 0:02:26.7]} 17.
Rad1 {[%clk 0:02:15.1]} 17... Rc8 {[%clk 0:02:15.4]} 18. Re2 {[%clk 0:02:06.4]}
18... d4 {[%clk 0:02:01.5]} 19. Ne4 {[%clk 0:02:02.4]} 19... Qxa2 {[%clk
0:02:01]} 20. b3 {[%clk 0:01:58.4]} 20... Qa5 {[%clk 0:01:53.4]} 21. Nd6+ {[%clk
0:01:44.4]} 21... Bxd6 {[%clk 0:01:53]} 22. exd6 {[%clk 0:01:45.3]} 22... Kd7
{[%clk 0:01:44]} 23. Bf4 {[%clk 0:01:36.4]} 23... Rhg8 {[%clk 0:01:39.8]} 24.
Rde1 {[%clk 0:01:28.5]} 24... Bd5 {[%clk 0:01:31.5]} 25. Bg3 {[%clk 0:01:05.2]}
25... Kc6 {[%clk 0:01:26.3]} 26. d7 {[%clk 0:00:44.7]} 26... Rcd8 {[%clk
0:01:08]} 27. b4 {[%clk 0:00:18.1]} 27... Qxb4 {[%clk 0:01:02.2]} 28. Qf4 {[%clk
0:00:16.9]} 28... Rxd7 {[%clk 0:01:02]} 29. Kh2 {[%clk 0:00:13.2]} 29... a5
{[%clk 0:00:57.7]} 30. Ra1 {[%clk 0:00:07]} 30... a4 {[%clk 0:00:55.7]} 31. Ree1
{[%clk 0:00:07.5]} 31... d3 {[%clk 0:00:47.8]} 32. Qe3 {[%clk 0:00:02.3]} 32...
dxc2 {[%clk 0:00:42]} 33. Rec1 {[%clk 0:00:01.9]} 33... Bb3 {[%clk 0:00:39.2]}
34. Qe5 {[%clk 0:00:02.3]} 34... Qd4 {[%clk 0:00:37.2]} 35. Qg5 {[%clk
0:00:01.7]} 35... Rgd8 {[%clk 0:00:32.6]} 36. Qh5 {[%clk 0:00:02.2]} 36... Qe4
{[%clk 0:00:30.5]} 37. Qg5 {[%clk 0:00:02.1]} 37... Qf5 {[%clk 0:00:29.4]} 38.
Qxg7 {[%clk 0:00:02.2]} 38... Rd3 {[%clk 0:00:26.2]} 39. Qb2 {[%clk 0:00:02.1]}
39... Rd1 {[%clk 0:00:22.3]} 40. Qc3 {[%clk 0:00:01.7]} 40... Rxc1 {[%clk
0:00:22]} 41. Rxc1 {[%clk 0:00:02.6]} 41... Rd1 {[%clk 0:00:22.4]} 42. Qa5
{[%clk 0:00:01.4]} 42... Rxc1 {[%clk 0:00:18.5]} 43. Qa6+ {[%clk 0:00:01.9]}
43... Kd5 {[%clk 0:00:18.7]} 44. Qb7+ {[%clk 0:00:02.2]} 44... Kc4 {[%clk
0:00:19.1]} 45. Qa6+ {[%clk 0:00:01.9]} 45... Kc3 {[%clk 0:00:19.5]} 46. Qd6
{[%clk 0:00:02.4]} 46... Kb2 {[%clk 0:00:19.6]} 47. Qxc5 {[%clk 0:00:02.6]}
47... Qxc5 {[%clk 0:00:19.1]} 48. Be5+ {[%clk 0:00:03.5]} 48... Qxe5+ {[%clk
0:00:18.9]} 49. Kh3 {[%clk 0:00:04.4]} 49... Bd5 {[%clk 0:00:19.5]} 50. f4
{[%clk 0:00:05.3]} 50... Qxf4 {[%clk 0:00:19.6]} 51. g4 {[%clk 0:00:06.2]} 51...
Rh1# {[%clk 0:00:20.3]} 0-1

[Event "Early-Titled-Tuesday-Blitz-January-23-2024"]
[Site "Chess.com"]
[Date "2024.01.23"]
[Round "3"]
[White "Seochesspie"]
[Black "Chesstrainer1"]
[Result "1-0"]
[WhiteElo "2804"]
[BlackElo "2513"]
[TimeControl "180+1"]
[EndTime "8:28:07 PST"]
[Termination "Seochesspie won on time"]

1. d4 {[%clk 0:03:00.9]} 1... Nf6 {[%clk 0:02:59.5]} 2. c4 {[%clk 0:03:01.5]}
2... Nc6 {[%clk 0:02:59.7]} 3. Nc3 {[%clk 0:02:59.9]} 3... e5 {[%clk 0:02:59.2]}
4. d5 {[%clk 0:02:57.2]} 4... Ne7 {[%clk 0:02:59.4]} 5. e4 {[%clk 0:02:56.3]}
5... Ng6 {[%clk 0:02:58.7]} 6. a3 {[%clk 0:02:56.2]} 6... Bc5 {[%clk 0:02:56.7]}
7. f3 {[%clk 0:02:53.4]} 7... a5 {[%clk 0:02:53.8]} 8. Rb1 {[%clk 0:02:37.8]}
8... d6 {[%clk 0:02:45.3]} 9. b4 {[%clk 0:02:35.4]} 9... axb4 {[%clk 0:02:45]}
10. axb4 {[%clk 0:02:36.3]} 10... Ba7 {[%clk 0:02:20.9]} 11. Bd3 {[%clk
0:02:32.9]} 11... O-O {[%clk 0:02:17.3]} 12. Nge2 {[%clk 0:02:33]} 12... Nh5
{[%clk 0:02:16.7]} 13. g3 {[%clk 0:02:27.5]} 13... Bh3 {[%clk 0:02:14.6]} 14.
Nb5 {[%clk 0:02:00.6]} 14... Bg2 {[%clk 0:02:05.3]} 15. Rf1 {[%clk 0:02:00.6]}
15... Bxf1 {[%clk 0:02:04.9]} 16. Kxf1 {[%clk 0:02:00.8]} 16... Bb6 {[%clk
0:02:04.5]} 17. Qc2 {[%clk 0:01:54.2]} 17... c6 {[%clk 0:01:56.2]} 18. Nbc3
{[%clk 0:01:54.2]} 18... Ne7 {[%clk 0:01:38.2]} 19. Kg2 {[%clk 0:01:50.5]} 19...
cxd5 {[%clk 0:01:37.5]} 20. cxd5 {[%clk 0:01:46.4]} 20... g6 {[%clk 0:01:30.7]}
21. Bh6 {[%clk 0:01:44.2]} 21... Ng7 {[%clk 0:01:30.3]} 22. Nb5 {[%clk
0:01:34.9]} 22... Qd7 {[%clk 0:01:28.8]} 23. Nec3 {[%clk 0:01:32.9]} 23... Rfc8
{[%clk 0:01:20]} 24. Qe2 {[%clk 0:01:31.2]} 24... Ne8 {[%clk 0:00:52.5]} 25. Bd2
{[%clk 0:01:24.3]} 25... Nc7 {[%clk 0:00:49.5]} 26. Nxc7 {[%clk 0:01:21.5]}
26... Rxc7 {[%clk 0:00:46.2]} 27. Bc4 {[%clk 0:01:04.9]} 27... Qc8 {[%clk
0:00:44.3]} 28. Nb5 {[%clk 0:01:00.1]} 28... Rxc4 {[%clk 0:00:43.9]} 29. Nxd6
{[%clk 0:01:00.3]} 29... Rc2 {[%clk 0:00:25.6]} 30. Nxc8 {[%clk 0:00:58.7]}
30... Nxc8 {[%clk 0:00:26.3]} 31. Kh3 {[%clk 0:00:49.1]} 31... Raa2 {[%clk
0:00:25]} 32. Rd1 {[%clk 0:00:49]} 32... Nd6 {[%clk 0:00:22.1]} 33. f4 {[%clk
0:00:21.4]} 33... Nc4 {[%clk 0:00:14]} 34. fxe5 {[%clk 0:00:21.6]} 34... Nxd2
{[%clk 0:00:14.2]} 35. e6 {[%clk 0:00:18.1]} 35... Bd8 {[%clk 0:00:09.5]} 36.
exf7+ {[%clk 0:00:17.4]} 36... Kxf7 {[%clk 0:00:09.4]} 37. Qf2+ {[%clk
0:00:17.5]} 37... Ke8 {[%clk 0:00:09.4]} 38. Qd4 {[%clk 0:00:11.6]} 38... Nf3
{[%clk 0:00:07.7]} 39. Qh8+ {[%clk 0:00:12.1]} 39... Kd7 {[%clk 0:00:08]} 40.
Qxh7+ {[%clk 0:00:12.6]} 40... Be7 {[%clk 0:00:08.7]} 41. Kg4 {[%clk 0:00:07.4]}
41... Rxh2 {[%clk 0:00:07.2]} 42. Qg7 {[%clk 0:00:05.6]} 42... Raf2 {[%clk
0:00:03]} 43. e5 {[%clk 0:00:05.4]} 1-0

[Event "Early-Titled-Tuesday-Blitz-January-23-2024"]
[Site "Chess.com"]
[Date "2024.01.23"]
[Round "3"]
[White "Knightmare1014"]
[Black "Chernov_Mikhail"]
[Result "1-0"]
[WhiteElo "2225"]
[BlackElo "2374"]
[TimeControl "180+1"]
[EndTime "8:28:08 PST"]
[Termination "Knightmare1014 won on time"]

1. e4 {[%clk 0:03:00.9]} 1... e5 {[%clk 0:02:56.8]} 2. Nf3 {[%clk 0:03:00.9]}
2... Nf6 {[%clk 0:02:57.4]} 3. Nc3 {[%clk 0:02:59.6]} 3... Nc6 {[%clk
0:02:56.1]} 4. Bb5 {[%clk 0:02:58]} 4... Bc5 {[%clk 0:02:51.9]} 5. O-O {[%clk
0:02:56.6]} 5... d6 {[%clk 0:02:47.3]} 6. d3 {[%clk 0:02:55.6]} 6... h6 {[%clk
0:02:46.6]} 7. Be3 {[%clk 0:02:54.9]} 7... Bb6 {[%clk 0:02:45.8]} 8. h3 {[%clk
0:02:54.8]} 8... O-O {[%clk 0:02:45.4]} 9. Nd5 {[%clk 0:02:53.6]} 9... Nxd5
{[%clk 0:02:42.2]} 10. exd5 {[%clk 0:02:54.5]} 10... Ne7 {[%clk 0:02:39.6]} 11.
c4 {[%clk 0:02:54.1]} 11... Bxe3 {[%clk 0:02:35.7]} 12. fxe3 {[%clk 0:02:53.5]}
12... f5 {[%clk 0:02:35.1]} 13. Ba4 {[%clk 0:02:50.4]} 13... Bd7 {[%clk
0:02:31.5]} 14. Bc2 {[%clk 0:02:49.4]} 14... Qe8 {[%clk 0:02:29.2]} 15. Qe1
{[%clk 0:02:47.2]} 15... Qh5 {[%clk 0:02:28.4]} 16. Qh4 {[%clk 0:02:45.7]} 16...
Qxh4 {[%clk 0:02:25.7]} 17. Nxh4 {[%clk 0:02:45.6]} 17... g5 {[%clk 0:02:25.2]}
18. Nf3 {[%clk 0:02:45.6]} 18... Kg7 {[%clk 0:02:21.8]} 19. d4 {[%clk
0:02:42.5]} 19... e4 {[%clk 0:02:15.7]} 20. Nd2 {[%clk 0:02:42.3]} 20... Ng6
{[%clk 0:02:15.1]} 21. Rf2 {[%clk 0:02:40.5]} 21... c6 {[%clk 0:02:12.5]} 22.
dxc6 {[%clk 0:02:39.5]} 22... bxc6 {[%clk 0:02:13.4]} 23. Raf1 {[%clk
0:02:38.4]} 23... d5 {[%clk 0:02:11.6]} 24. cxd5 {[%clk 0:02:36.9]} 24... cxd5
{[%clk 0:02:11.9]} 25. Bb3 {[%clk 0:02:35.6]} 25... Be6 {[%clk 0:02:09.9]} 26.
Rc1 {[%clk 0:02:33]} 26... a5 {[%clk 0:02:10.4]} 27. Rc7+ {[%clk 0:02:32.7]}
27... Kf6 {[%clk 0:02:08.2]} 28. Rc6 {[%clk 0:02:32.3]} 28... Ke7 {[%clk
0:01:57]} 29. Rc5 {[%clk 0:02:26.9]} 29... Kd6 {[%clk 0:01:52]} 30. Rb5 {[%clk
0:02:19.1]} 30... a4 {[%clk 0:01:44.3]} 31. Bd1 {[%clk 0:02:18.4]} 31... a3
{[%clk 0:01:39.4]} 32. bxa3 {[%clk 0:02:14.3]} 32... Rxa3 {[%clk 0:01:35.6]} 33.
Bb3 {[%clk 0:02:14.9]} 33... Rc8 {[%clk 0:01:31.8]} 34. Rb6+ {[%clk 0:02:12.6]}
34... Rc6 {[%clk 0:01:30.4]} 35. Rxc6+ {[%clk 0:02:09.4]} 35... Kxc6 {[%clk
0:01:31.3]} 36. Nxe4 {[%clk 0:02:08.6]} 36... dxe4 {[%clk 0:01:07.1]} 37. Bxe6
{[%clk 0:02:07.6]} 37... f4 {[%clk 0:01:05.9]} 38. exf4 {[%clk 0:02:03.7]} 38...
gxf4 {[%clk 0:01:00.3]} 39. Bf5 {[%clk 0:01:49.4]} 39... e3 {[%clk 0:00:38.4]}
40. Rf3 {[%clk 0:01:49.3]} 40... Nh4 {[%clk 0:00:11.2]} 41. Rxf4 {[%clk
0:01:48.8]} 41... Nxf5 {[%clk 0:00:08]} 42. Rxf5 {[%clk 0:01:48.5]} 42... Rxa2
{[%clk 0:00:08.4]} 43. Re5 {[%clk 0:01:47.5]} 43... e2 {[%clk 0:00:07.5]} 44.
Kf2 {[%clk 0:01:47.4]} 44... e1=Q+ {[%clk 0:00:06.9]} 45. Kxe1 {[%clk
0:01:47.5]} 45... Rxg2 {[%clk 0:00:07.6]} 46. Kf1 {[%clk 0:01:44.4]} 46... Rg3
{[%clk 0:00:06.7]} 47. Rh5 {[%clk 0:01:43.3]} 47... Kd6 {[%clk 0:00:04.7]} 48.
Kf2 {[%clk 0:01:41.3]} 48... Rg6 {[%clk 0:00:03.9]} 49. Ke3 {[%clk 0:01:40.2]}
49... Rg3+ {[%clk 0:00:02.4]} 50. Ke4 {[%clk 0:01:39.6]} 50... Rg6 {[%clk
0:00:03.3]} 51. Ra5 {[%clk 0:01:37.8]} 51... Rg3 {[%clk 0:00:02.3]} 52. Ra6+
{[%clk 0:01:37.7]} 52... Ke7 {[%clk 0:00:03]} 53. Rxh6 {[%clk 0:01:37.4]} 53...
Rg1 {[%clk 0:00:03.6]} 54. Ke5 {[%clk 0:01:35.6]} 54... Re1+ {[%clk 0:00:04.2]}
55. Kd5 {[%clk 0:01:35.8]} 55... Rh1 {[%clk 0:00:04.8]} 56. Rh7+ {[%clk
0:01:35.8]} 56... Kf6 {[%clk 0:00:04.6]} 57. Kd6 {[%clk 0:01:36.2]} 57... Kg6
{[%clk 0:00:04.9]} 58. Rh4 {[%clk 0:01:34.8]} 58... Kg5 {[%clk 0:00:03]} 59. Rh8
{[%clk 0:01:34.7]} 59... Kg6 {[%clk 0:00:03.7]} 60. d5 {[%clk 0:01:34.7]} 60...
Rd1 {[%clk 0:00:04.6]} 61. Kc6 {[%clk 0:01:34]} 61... Rc1+ {[%clk 0:00:04.2]}
62. Kd7 {[%clk 0:01:33.4]} 62... Kg7 {[%clk 0:00:05]} 63. Rh4 {[%clk 0:01:32.4]}
63... Kf7 {[%clk 0:00:04.6]} 64. d6 {[%clk 0:01:32.3]} 64... Rc2 {[%clk
0:00:03.7]} 65. Rf4+ {[%clk 0:01:31.4]} 65... Kg7 {[%clk 0:00:04.2]} 66. Kd8
{[%clk 0:01:31.6]} 66... Rc3 {[%clk 0:00:04]} 67. d7 {[%clk 0:01:30.7]} 67...
Rxh3 {[%clk 0:00:03.5]} 68. Ke7 {[%clk 0:01:29.9]} 68... Re3+ {[%clk 0:00:03.6]}
69. Kd6 {[%clk 0:01:29.6]} 69... Rd3+ {[%clk 0:00:04.2]} 70. Ke6 {[%clk
0:01:28.2]} 70... Re3+ {[%clk 0:00:04.2]} 71. Kd5 {[%clk 0:01:27.6]} 1-0

[Event "Early-Titled-Tuesday-Blitz-January-23-2024"]
[Site "Chess.com"]
[Date "2024.01.23"]
[Round "3"]
[White "vovachesss"]
[Black "KnobbedHornbill"]
[Result "1/2-1/2"]
[WhiteElo "2864"]
[BlackElo "2580"]
[TimeControl "180+1"]
[EndTime "8:28:09 PST"]
[Termination "Game drawn by repetition"]

1. e4 {[%clk 0:03:00.9]} 1... c5 {[%clk 0:03:00.2]} 2. c3 {[%clk 0:03:01.1]}
2... e6 {[%clk 0:02:59.1]} 3. d4 {[%clk 0:03:01]} 3... cxd4 {[%clk 0:03:00]} 4.
cxd4 {[%clk 0:03:01.1]} 4... d5 {[%clk 0:03:00.9]} 5. e5 {[%clk 0:03:01.7]} 5...
Nc6 {[%clk 0:03:00.8]} 6. Nf3 {[%clk 0:03:02.1]} 6... Nge7 {[%clk 0:02:59.9]} 7.
Na3 {[%clk 0:02:54]} 7... Nf5 {[%clk 0:02:59.8]} 8. Nc2 {[%clk 0:02:54.7]} 8...
Be7 {[%clk 0:03:00.1]} 9. Bd3 {[%clk 0:02:52.3]} 9... O-O {[%clk 0:03:00.2]} 10.
O-O {[%clk 0:02:52.5]} 10... f6 {[%clk 0:03:00]} 11. Bf4 {[%clk 0:02:50.7]}
11... fxe5 {[%clk 0:02:53.6]} 12. Nxe5 {[%clk 0:02:50.6]} 12... g6 {[%clk
0:02:09]} 13. Qd2 {[%clk 0:02:27.8]} 13... Nxe5 {[%clk 0:02:02.7]} 14. Bxe5
{[%clk 0:02:26.6]} 14... Bd7 {[%clk 0:01:54.6]} 15. Rae1 {[%clk 0:02:15.1]}
15... Rc8 {[%clk 0:01:48.7]} 16. Re2 {[%clk 0:02:06.5]} 16... Qb6 {[%clk
0:01:42.6]} 17. b3 {[%clk 0:01:37.4]} 17... Bb5 {[%clk 0:01:42]} 18. Rfe1 {[%clk
0:01:34.1]} 18... Bxd3 {[%clk 0:01:39.7]} 19. Qxd3 {[%clk 0:01:35]} 19... Rc6
{[%clk 0:01:38.4]} 20. Ne3 {[%clk 0:01:25.8]} 20... Qa6 {[%clk 0:01:31.5]} 21.
Qd2 {[%clk 0:01:17.5]} 21... Nxe3 {[%clk 0:01:19.9]} 22. Qxe3 {[%clk 0:01:14.8]}
22... Bb4 {[%clk 0:01:15]} 23. Rf1 {[%clk 0:00:49.3]} 23... Rf7 {[%clk
0:01:14.8]} 24. h4 {[%clk 0:00:44.6]} 24... Rc3 {[%clk 0:01:11]} 25. Qd2 {[%clk
0:00:28.6]} 25... Rxb3 {[%clk 0:00:52.4]} 26. Qd1 {[%clk 0:00:26.7]} 26... Rd3
{[%clk 0:00:42.3]} 27. Qc1 {[%clk 0:00:25.5]} 27... Rc3 {[%clk 0:00:41.5]} 28.
Rc2 {[%clk 0:00:25.7]} 28... Qc4 {[%clk 0:00:39.7]} 29. Rxc3 {[%clk 0:00:22.6]}
29... Qxc3 {[%clk 0:00:40.1]} 30. Qg5 {[%clk 0:00:23.1]} 30... Be7 {[%clk
0:00:37.9]} 31. Qg4 {[%clk 0:00:17.9]} 31... Qc6 {[%clk 0:00:36.5]} 32. h5
{[%clk 0:00:17.2]} 32... g5 {[%clk 0:00:33.4]} 33. h6 {[%clk 0:00:14.2]} 33...
Rf5 {[%clk 0:00:32]} 34. Qg3 {[%clk 0:00:10.6]} 34... Qc4 {[%clk 0:00:27.7]} 35.
Qe3 {[%clk 0:00:10.3]} 35... b5 {[%clk 0:00:25.7]} 36. Rc1 {[%clk 0:00:10.8]}
36... Qb4 {[%clk 0:00:19.7]} 37. Bg7 {[%clk 0:00:07.6]} 37... Kf7 {[%clk
0:00:18.8]} 38. Rc6 {[%clk 0:00:06.2]} 38... Qb1+ {[%clk 0:00:16.6]} 39. Kh2
{[%clk 0:00:06.6]} 39... Qe4 {[%clk 0:00:17.5]} 40. Qh3 {[%clk 0:00:03]} 40...
Qh4 {[%clk 0:00:14.5]} 41. Qxh4 {[%clk 0:00:02.7]} 41... gxh4 {[%clk 0:00:15.4]}
42. Ra6 {[%clk 0:00:03.3]} 42... Rxf2 {[%clk 0:00:13.8]} 43. Rxa7 {[%clk
0:00:04]} 43... Ke8 {[%clk 0:00:12.9]} 44. Be5 {[%clk 0:00:04.5]} 44... Rb2
{[%clk 0:00:09.9]} 45. Ra8+ {[%clk 0:00:04.9]} 45... Kf7 {[%clk 0:00:10.2]} 46.
Ra7 {[%clk 0:00:05.8]} 46... Ke8 {[%clk 0:00:10.5]} 47. Ra8+ {[%clk 0:00:05.8]}
47... Kf7 {[%clk 0:00:10.4]} 48. Ra7 {[%clk 0:00:04.8]} 48... Ke8 {[%clk
0:00:10.3]} 1/2-1/2